fUST/lending_fUST_20250220
["ID","MTS","AMOUNT","RATE_DAILY","PERIOD"]
[353752469,1740010254375,-500.0,0.00014684,2]
[353752470,1740010254385,-4536.63,0.00014684,2]
[353752471,1740010254395,-500.0,0.00014684,2]
[353752472,1740010254404,-500.0,0.00014684,2]
[353752473,1740010254415,-1184.6,0.00014684,2]
[353752474,1740010254424,-1054.85,0.00014684,2]
[353752475,1740010254433,-698.44,0.00014684,2]
[353752476,1740010254443,-692.95,0.00014684,2]
[353752477,1740010254452,-500.0,0.00014684,2]
[353752478,1740010254462,-545.33,0.00014684,2]
[353752479,1740010254472,-151.0,0.000147,2]
[353752480,1740010254481,-151.0,0.000147,2]
[353752481,1740010254491,-1209.111,0.0001475,2]
[353752482,1740010254502,-172.025,0.0001475,2]
[353752483,1740010254512,-184.882004,0.00014767,2]
[353752484,1740010254522,-184.882004,0.00014767,2]
[353752485,1740010254535,-500.0,0.00014767,2]
[353752486,1740010254545,-531.58539594,0.00014767,2]
[353752487,1740010254555,-236.102534,0.00014767,2]
[353752488,1740010254565,-236.102534,0.00014767,2]
[353752489,1740010254574,-500.0,0.00014767,2]
[353752490,1740010254585,-500.0,0.00014767,2]
[353752491,1740010254595,-789.43,0.00014767,2]
[353752492,1740010254607,-4092.36,0.00014767,2]
[353752493,1740010254617,-12866.34,0.00014767,2]
[353752494,1740010254628,-500.0,0.00014767,2]
[353752495,1740010254639,-500.0,0.00014767,2]
[353752496,1740010254648,-500.0,0.00014767,2]
[353752497,1740010254659,-500.0,0.00014767,2]
[353752498,1740010254669,-671.53,0.00014767,2]
[353752499,1740010254679,-583.34,0.00014767,2]
[353752500,1740010254689,-969.4,0.00014767,2]
[353752501,1740010254699,-1702.23,0.00014767,2]
[353752502,1740010254709,-1017.11,0.00014767,2]
[353752503,1740010254719,-1044.34,0.00014767,2]
[353752504,1740010254730,-538.86,0.00014767,2]
[353752505,1740010254739,-500.0,0.00014767,2]
[353752506,1740010254748,-513.35,0.00014767,2]
[353752507,1740010254758,-500.0,0.00014767,2]
[353752508,1740010254768,-531.17,0.00014767,2]
[353752509,1740010254778,-551.5,0.00014767,2]
[353752510,1740010254788,-1250.49,0.00014767,2]
[353752511,1740010254799,-500.0,0.00014767,2]
[353752512,1740010254808,-4536.63,0.00014767,2]
[353752513,1740010254818,-500.0,0.00014767,2]
[353752514,1740010254828,-500.0,0.00014767,2]
[353752515,1740010254838,-1184.6,0.00014767,2]
[353752516,1740010254848,-1054.85,0.00014767,2]
[353752517,1740010254858,-698.44,0.00014767,2]
[353752518,1740010254868,-692.95,0.00014767,2]
[353752519,1740010254878,-500.0,0.00014767,2]
[353752520,1740010254887,-545.33,0.00014767,2]
[353752521,1740010254897,-1000.0,0.00014795,2]
[353752522,1740010254906,-151.0,0.000148,2]
[353752523,1740010254916,-151.0,0.000148,2]
[353752524,1740010254926,-1546.624899,0.000148,2]
[353752525,1740010254936,-1546.624899,0.000148,2]
[353752526,1740010254946,-576.863411,0.000148,2]
[353752527,1740010254956,-576.863411,0.000148,2]
[353752528,1740010254966,-1086.214226,0.000148,2]
[353752529,1740010254975,-1086.214226,0.000148,2]
[353752530,1740010254985,-43662.9841664,0.000148,2]
[353752531,1740010254995,-1672.82742775,0.000148,2]
[353752532,1740010255006,-1672.82742775,0.000148,2]
[353752533,1740010255016,-1672.82742775,0.000148,2]
[353752534,1740010255025,-1672.82742775,0.000148,2]
[353752535,1740010255035,-1672.82742775,0.000148,2]
[353752536,1740010255045,-1672.82742775,0.000148,2]
[353752537,1740010255054,-1672.82742775,0.000148,2]
[353752538,1740010255064,-1672.82742775,0.000148,2]
[353752539,1740010255073,-1672.82742775,0.000148,2]
[353752540,1740010255083,-1672.82742775,0.000148,2]
[353752541,1740010255093,-1672.82742775,0.000148,2]
[353752542,1740010255103,-1672.82742775,0.000148,2]
[353752543,1740010255113,-1672.82742775,0.000148,2]
[353752544,1740010255123,-1672.82742775,0.000148,2]
[353752545,1740010255132,-1672.82742775,0.000148,2]
[353752546,1740010255142,-1672.82742775,0.000148,2]
[353752547,1740010255151,-1672.82742775,0.000148,2]
[353752548,1740010255160,-1672.82742775,0.000148,2]
[353752549,1740010255170,-1672.82742775,0.000148,2]
[353752550,1740010255179,-1672.82,0.000148,2]
[353752551,1740010255190,-203.7806808,0.000148,2]
[353752552,1740010255201,-203.7806808,0.000148,2]
[353752553,1740010255211,-203.7806808,0.000148,2]
[353752554,1740010255221,-203.7806808,0.000148,2]
[353752555,1740010255231,-203.7806808,0.000148,2]
[353752556,1740010255240,-203.7806808,0.000148,2]
[353752557,1740010255250,-203.7806808,0.000148,2]
[353752558,1740010255259,-203.7806808,0.000148,2]
[353752559,1740010255269,-203.7806808,0.000148,2]
[353752560,1740010255278,-203.7806808,0.000148,2]
[353752561,1740010255288,-203.7806808,0.000148,2]
[353752562,1740010255298,-203.7806808,0.000148,2]
[353752563,1740010255308,-203.7806808,0.000148,2]
[353752564,1740010255318,-203.7806808,0.000148,2]
[353752565,1740010255329,-203.7806808,0.000148,2]
[353752566,1740010255339,-203.7806808,0.000148,2]
[353752567,1740010255349,-203.7806808,0.000148,2]
[353752568,1740010255359,-203.7806808,0.000148,2]
[353752569,1740010255369,-203.7806808,0.000148,2]
[353752570,1740010255379,-203.78,0.000148,2]
[353752571,1740010255389,-612.608067,0.000148,2]
[353752572,1740010255400,-612.608067,0.000148,2]
[353752573,1740010255410,-218.184773,0.000148,2]
[353752574,1740010255420,-1460.899831,0.00014849,2]
[353752575,1740010255430,-1460.899831,0.00014849,2]
[353752576,1740010255440,-500.0,0.00014849,2]
[353752577,1740010255449,-500.0,0.00014849,2]
[353752578,1740010255460,-500.0,0.00014849,2]
[353752579,1740010255469,-789.43,0.00014849,2]
[353752580,1740010255480,-4092.36,0.00014849,2]
[353752581,1740010255490,-12866.34,0.00014849,2]
[353752582,1740010255499,-500.0,0.00014849,2]
[353752583,1740010255509,-500.0,0.00014849,2]
[353752584,1740010255519,-500.0,0.00014849,2]
[353752585,1740010255531,-422.3,0.00014849,2]
[353752586,1740010255541,-671.53,0.00014849,2]
[353752587,1740010255551,-583.34,0.00014849,2]
[353752588,1740010255561,-969.4,0.00014849,2]
[353752589,1740010255573,-1702.23,0.00014849,2]
[353752590,1740010255584,-1017.11,0.00014849,2]
[353752591,1740010255594,-1044.34,0.00014849,2]
[353752592,1740010255605,-538.86,0.00014849,2]
[353752593,1740010255616,-500.0,0.00014849,2]
[353752594,1740010255627,-513.35,0.00014849,2]
[353752595,1740010255637,-600.36,0.00014849,2]
[353752596,1740010255647,-531.17,0.00014849,2]
[353752597,1740010255658,-551.5,0.00014849,2]
[353752598,1740010255785,-1250.49,0.00014849,2]
[353752599,1740010255795,-500.0,0.00014849,2]
[353752600,1740010255805,-4536.63,0.00014849,2]
[353752601,1740010255814,-500.0,0.00014849,2]
[353752602,1740010255826,-500.0,0.00014849,2]
[353752603,1740010255842,-1184.6,0.00014849,2]
[353752604,1740010255854,-1054.85,0.00014849,2]
[353752605,1740010255865,-698.44,0.00014849,2]
[353752606,1740010255875,-692.95,0.00014849,2]
[353752607,1740010255886,-572.31799085,0.00014849,2]
[353752608,1740010255896,-400.69720656,0.00014852,2]
[353752609,1740010255911,-500.0,0.00014873,2]
[353752610,1740010255924,-500.0,0.00014873,2]
[353752611,1740010255934,-897.731421,0.00014889,2]
[353752612,1740010255944,-897.731421,0.00014889,2]
[353752613,1740010255954,-201.63348696,0.00014889,2]
[353752614,1740010255964,-166.0,0.00014889,2]
[353752615,1740010255974,-166.0,0.00014889,2]
[353752616,1740010255984,-204.66108231,0.00014889,2]
[353752617,1740010255994,-259.39,0.00014889,2]
[353752618,1740010256004,-349.0,0.00014889,2]
[353752619,1740010256014,-156.55,0.00014889,2]
[353752620,1740010256024,-349.0,0.00014889,2]
[353752621,1740010256035,-349.0,0.00014889,2]
[353752622,1740010256045,-349.0,0.00014889,2]
[353752623,1740010256055,-314.0,0.00014889,2]
[353752624,1740010256064,-314.0,0.00014889,2]
[353752625,1740010256074,-217.11643488,0.00014889,2]
[353752626,1740010256084,-314.0,0.00014889,2]
[353752627,1740010256094,-314.0,0.00014889,2]
[353752628,1740010256104,-314.0,0.00014889,2]
[353752629,1740010256113,-314.0,0.00014889,2]
[353752630,1740010256123,-314.0,0.00014889,2]
[353752631,1740010256132,-314.0,0.00014889,2]
[353752632,1740010256142,-314.0,0.00014889,2]
[353752633,1740010256151,-314.0,0.00014889,2]
[353752634,1740010256162,-314.0,0.00014889,2]
[353752635,1740010256171,-314.0,0.00014889,2]
[353752636,1740010256181,-314.0,0.00014889,2]
[353752637,1740010256191,-314.0,0.00014889,2]
[353752638,1740010256201,-314.0,0.00014889,2]
[353752639,1740010256210,-359.25223506,0.00014889,2]
[353752640,1740010256220,-434.74597,0.0001489,2]
[353752641,1740010256231,-434.74597,0.0001489,2]
[353752642,1740010256241,-643.59178614,0.0001489,2]
[353752643,1740010256386,-446.07383709,0.0001489,2]
[353752644,1740010256399,-1179.53791288,0.0001489,2]
[353752645,1740010256412,-4661.46658689,0.0001489,2]
[353752646,1740010256422,-6930.670123,0.0001489,2]
[353752647,1740010256431,-244.052745,0.00014898,2]
[353752648,1740010256441,-244.052745,0.00014898,2]
[353752649,1740010256451,-412.33615872,0.00014899,2]
[353752650,1740010256462,-151.0,0.00014899,2]
[353752651,1740010256473,-349.0,0.00014899,2]
[353752652,1740010256484,-672.359079,0.000149,2]
[353752653,1740010256494,-672.359079,0.000149,2]
[353752654,1740010256505,-672.359079,0.000149,2]
[353752655,1740010256516,-672.359079,0.000149,2]
[353752656,1740010256529,-279.485742,0.000149,2]
[353752657,1740010256542,-279.485742,0.000149,2]
[353752658,1740010256553,-151.357764,0.000149,2]
[353752659,1740010256564,-151.357764,0.000149,2]
[353752660,1740010256576,-244.052745,0.000149,2]
[353752661,1740010256587,-244.052745,0.000149,2]
[353752662,1740010256600,-184.882004,0.000149,2]
[353752663,1740010256614,-184.882004,0.000149,2]
[353752664,1740010256626,-184.882004,0.000149,2]
[353752665,1740010256637,-184.882004,0.000149,2]
[353752666,1740010256648,-1460.899831,0.000149,2]
[353752667,1740010256659,-1460.899831,0.000149,2]
[353752668,1740010256670,-1460.899831,0.000149,2]
[353752669,1740010256683,-1460.899831,0.000149,2]
[353752670,1740010256693,-156.314289,0.000149,2]
[353752671,1740010256706,-151.0,0.000149,2]
[353752672,1740010256718,-151.0,0.000149,2]
[353752673,1740010256729,-1503.021722,0.000149,2]
[353752674,1740010256740,-1503.021722,0.000149,2]
[353752675,1740010256750,-450.0,0.000149,2]
[353752676,1740010256760,-450.0,0.000149,2]
[353752677,1740010256771,-151.0,0.000149,2]
[353752678,1740010256781,-434.74597,0.000149,2]
[353752679,1740010256792,-2823.425337,0.000149,2]
[353752680,1740010256803,-434.74597,0.000149,2]
[353752681,1740010256813,-2823.425337,0.000149,2]
[353752682,1740010256824,-151.0,0.000149,2]
[353752683,1740010256835,-288.30562454,0.000149,2]
[353752684,1740010256846,-2767.604521,0.000149,2]
[353752685,1740010256857,-2767.604521,0.000149,2]
[353752686,1740010256868,-288.30562453,0.000149,2]
[353752687,1740010256879,-1339.774645,0.000149,2]
[353752688,1740010256890,-1339.774645,0.000149,2]
[353752689,1740010256902,-288.30562453,0.000149,2]
[353752690,1740010256912,-1546.624899,0.000149,2]
[353752691,1740010256922,-1546.624899,0.000149,2]
[353752692,1740010256933,-364.184848,0.000149,2]
[353752693,1740010256944,-576.863411,0.000149,2]
[353752694,1740010256955,-364.184848,0.000149,2]
[353752695,1740010256966,-576.863411,0.000149,2]
[353752696,1740010256977,-6930.670123,0.000149,2]
[353752697,1740010256987,-6930.670123,0.000149,2]
[353752698,1740010256997,-314.0,0.000149,2]
[353752699,1740010257008,-500.0,0.000149,2]
[353752700,1740010257018,-500.0,0.000149,2]
[353752701,1740010257028,-206.916301,0.000149,2]
[353752702,1740010257039,-236.102534,0.000149,2]
[353752703,1740010257050,-206.916301,0.000149,2]
[353752704,1740010257061,-236.102534,0.000149,2]
[353752705,1740010257071,-1086.214226,0.000149,2]
[353752706,1740010257082,-1086.214226,0.000149,2]
[353752707,1740010257094,-151.0,0.000149,2]
[353752708,1740010257105,-151.0,0.000149,2]
[353752709,1740010257115,-151.0,0.000149,2]
[353752710,1740010257126,-151.0,0.000149,2]
[353752711,1740010257136,-897.731421,0.000149,2]
[353752712,1740010257147,-897.731421,0.000149,2]
[353752713,1740010257158,-474.003563,0.000149,2]
[353752714,1740010257169,-474.003563,0.000149,2]
[353752715,1740010257180,-474.003563,0.000149,2]
[353752716,1740010257191,-474.003563,0.000149,2]
[353752717,1740010257203,-120900.99942071,0.000149,2]
[353752718,1740010257359,-500.0,0.00013698,2]
[353752719,1740010257370,-557.1188801,0.000139,2]
[353752720,1740010257381,-218.184773,0.00014653,2]
[353752721,1740010257391,-218.184773,0.000148,2]
[353752722,1740010257402,-545.33,0.00014849,2]
[353752723,1740010257412,-3201.08543866,0.000149,2]
[353752724,1740010257483,-335.02,0.000149,2]
[353752725,1740010257496,-452.112233,0.000149,2]
[353752728,1740010318512,164.299048,9.041e-05,2]
[353752797,1740011315514,1050.37210985,0.00018173,90]
[353752805,1740011381240,164.299048,9.041e-05,2]
[353752855,1740011431911,-305.85782262,0.00012698,2]
[353752862,1740011431968,-937.04531065,0.00012698,2]
[353752868,1740011432025,-841.60852763,0.00012698,2]
[353752870,1740011432036,-500.0,0.00013673,2]
[353752872,1740011432047,-1455.04646867,0.0001368,2]
[353752874,1740011432057,-300.0,0.00013696,2]
[353752876,1740011432066,-500.0,0.00013697,2]
[353752878,1740011432076,-500.0,0.00013697,2]
[353752880,1740011432086,-500.0,0.00013697,2]
[353752882,1740011432096,-495.99421823,0.00013697,2]
[353752884,1740011432105,-427.79994563,0.00013697,2]
[353752886,1740011432116,-4007.48097865,0.00013697,2]
[353752889,1740011432125,-451.63976033,0.00013698,2]
[353752892,1740011432135,-500.0,0.00013698,2]
[353752896,1740011432145,-500.0,0.00013698,2]
[353752898,1740011432154,-380.27426187,0.00013698,2]
[353752903,1740011432167,-119.72573813,0.00013698,2]
[353752906,1740011432177,-623.01604706,0.00013698,2]
[353752944,1740011432410,-500.0,0.00013698,2]
[353752946,1740011432421,-500.0,0.00013698,2]
[353752948,1740011432431,-500.0,0.00013698,2]
[353752950,1740011432440,-449.72448752,0.00013698,2]
[353752952,1740011432450,-500.0,0.00013698,2]
[353752953,1740011432459,-500.0,0.00013698,2]
[353752955,1740011432468,-500.0,0.00013698,2]
[353752956,1740011432477,-500.0,0.00013698,2]
[353752958,1740011432487,-500.0,0.00013698,2]
[353752960,1740011432497,-500.0,0.00013698,2]
[353752962,1740011432507,-500.0,0.00013698,2]
[353752964,1740011432516,-500.0,0.00013698,2]
[353752966,1740011432526,-500.0,0.00013698,2]
[353752968,1740011432535,-500.0,0.00013698,2]
[353752970,1740011432544,-500.0,0.00013698,2]
[353752972,1740011432553,-500.0,0.00013698,2]
[353752974,1740011432563,-500.0,0.00013698,2]
[353752976,1740011432573,-480.36844253,0.00013698,2]
[353752978,1740011432585,-19.63155747,0.00013698,2]
[353752980,1740011432595,-500.0,0.00013698,2]
[353752982,1740011432604,-399.89117731,0.00013698,2]
[353753493,1740011437893,-100.10882269,0.00013698,2]
[353753495,1740011437903,-500.0,0.00013698,2]
[353753496,1740011437913,-500.0,0.00013698,2]
[353753498,1740011437923,-500.0,0.00013698,2]
[353753500,1740011437934,-500.0,0.00013698,2]
[353753502,1740011437944,-500.0,0.00013698,2]
[353753504,1740011437955,-500.0,0.00013698,2]
[353753506,1740011437964,-500.0,0.00013698,2]
[353753508,1740011437977,-500.0,0.00013698,2]
[353753510,1740011437987,-500.0,0.00013698,2]
[353753512,1740011437997,-475.09830195,0.00013698,2]
[353753514,1740011438006,-500.0,0.00013698,2]
[353753516,1740011438016,-500.0,0.00013698,2]
[353753518,1740011438025,-500.0,0.00013698,2]
[353753520,1740011438035,-500.0,0.00013698,2]
[353753522,1740011438046,-500.0,0.00013698,2]
[353753524,1740011438055,-500.0,0.00013698,2]
[353753526,1740011438066,-500.0,0.00013698,2]
[353753528,1740011438076,-500.0,0.00013698,2]
[353753529,1740011438085,-500.0,0.00013698,2]
[353753531,1740011438095,-500.0,0.00013698,2]
[353753533,1740011438104,-500.0,0.00013698,2]
[353753535,1740011438114,-500.0,0.00013698,2]
[353753537,1740011438124,-500.0,0.00013698,2]
[353753539,1740011438134,-500.0,0.00013698,2]
[353753541,1740011438143,-500.0,0.00013698,2]
[353753543,1740011438153,-500.0,0.00013698,2]
[353753545,1740011438162,-256.46250226,0.00013698,2]
[353753547,1740011438173,-500.0,0.00013698,2]
[353753549,1740011438182,-500.0,0.00013698,2]
[353753551,1740011438192,-500.0,0.00013698,2]
[353753553,1740011438202,-586.5994053,0.00013698,2]
[353753555,1740011438213,-500.0,0.00013698,2]
[353753556,1740011438223,-500.0,0.00013698,2]
[353753558,1740011438231,-400.18671853,0.00013698,2]
[353753560,1740011438241,-500.0,0.00013698,2]
[353753562,1740011438251,-500.0,0.00013698,2]
[353753564,1740011438260,-500.0,0.00013698,2]
[353753566,1740011438269,-500.0,0.00013698,2]
[353753568,1740011438278,-500.0,0.00013698,2]
[353753570,1740011438288,-500.0,0.00013698,2]
[353753572,1740011438297,-500.0,0.00013698,2]
[353753574,1740011438306,-500.0,0.00013698,2]
[353753575,1740011438316,-500.0,0.00013698,2]
[353753577,1740011438325,-500.0,0.00013698,2]
[353753578,1740011438335,-500.0,0.00013698,2]
[353753579,1740011438345,-500.0,0.00013698,2]
[353753580,1740011438354,-500.0,0.00013698,2]
[353753581,1740011438364,-500.0,0.00013698,2]
[353753582,1740011438373,-500.0,0.00013698,2]
[353753583,1740011438383,-500.0,0.00013698,2]
[353753584,1740011438392,-500.0,0.00013698,2]
[353753585,1740011438402,-568.67481476,0.00013698,2]
[353753586,1740011438411,-500.0,0.00013698,2]
[353753587,1740011438421,-500.0,0.00013698,2]
[353753588,1740011438430,-500.0,0.00013698,2]
[353753589,1740011438439,-500.0,0.00013698,2]
[353753590,1740011438449,-500.0,0.00013698,2]
[353753591,1740011438459,-500.0,0.00013698,2]
[353753592,1740011438469,-500.0,0.00013698,2]
[353753593,1740011438479,-500.0,0.00013698,2]
[353753594,1740011438488,-500.0,0.00013698,2]
[353753596,1740011438498,-500.0,0.00013698,2]
[353753598,1740011438508,-500.0,0.00013698,2]
[353753600,1740011438517,-500.0,0.00013698,2]
[353753601,1740011438529,-317.03770993,0.00013698,2]
[353753603,1740011438539,-500.0,0.00013698,2]
[353753605,1740011438548,-500.0,0.00013698,2]
[353753607,1740011438558,-500.0,0.00013698,2]
[353753609,1740011438568,-500.0,0.00013698,2]
[353753611,1740011438578,-505.04406688,0.00013698,2]
[353753613,1740011438587,-500.0,0.00013698,2]
[353753615,1740011438596,-500.0,0.00013698,2]
[353753617,1740011438605,-500.0,0.00013698,2]
[353753618,1740011438615,-500.0,0.00013698,2]
[353753620,1740011438624,-500.0,0.00013698,2]
[353753622,1740011438633,-500.0,0.00013698,2]
[353753624,1740011438643,-277.74400914,0.00013698,2]
[353753626,1740011438653,-500.0,0.00013698,2]
[353753628,1740011438663,-500.0,0.00013698,2]
[353753630,1740011438672,-500.0,0.00013698,2]
[353753632,1740011438682,-500.0,0.00013698,2]
[353753634,1740011438691,-500.0,0.00013698,2]
[353753636,1740011438700,-500.0,0.00013698,2]
[353753638,1740011438710,-500.0,0.00013698,2]
[353753640,1740011438719,-500.0,0.00013698,2]
[353753641,1740011438728,-500.0,0.00013698,2]
[353753643,1740011438738,-500.0,0.00013698,2]
[353753644,1740011438748,-500.0,0.00013698,2]
[353753645,1740011438757,-500.0,0.00013698,2]
[353753646,1740011438767,-500.0,0.00013698,2]
[353753647,1740011438776,-500.0,0.00013698,2]
[353753648,1740011438786,-500.0,0.00013698,2]
[353753649,1740011438795,-500.0,0.00013698,2]
[353753650,1740011438805,-500.0,0.00013698,2]
[353753651,1740011438815,-500.0,0.00013698,2]
[353753652,1740011438825,-500.0,0.00013698,2]
[353753653,1740011438835,-500.0,0.00013698,2]
[353753654,1740011438845,-500.0,0.00013698,2]
[353753655,1740011438855,-500.0,0.00013698,2]
[353753656,1740011438865,-357.20584298,0.00013698,2]
[353753657,1740011438875,-500.0,0.00013698,2]
[353753658,1740011438886,-304.0,0.00013698,2]
[353753659,1740011438901,-504.56042012,0.00013698,2]
[353753660,1740011438911,-500.0,0.00013698,2]
[353753661,1740011438923,-505.80915856,0.00013698,2]
[353753662,1740011438938,-500.0,0.00013698,2]
[353753663,1740011438949,-500.0,0.00013698,2]
[353753664,1740011438960,-500.0,0.00013698,2]
[353753665,1740011438972,-500.0,0.00013698,2]
[353753666,1740011438982,-500.0,0.00013698,2]
[353753668,1740011438992,-500.0,0.00013698,2]
[353753670,1740011439001,-500.0,0.00013698,2]
[353753672,1740011439011,-500.0,0.00013698,2]
[353753674,1740011439021,-501.11033946,0.00013698,2]
[353753676,1740011439031,-500.0,0.00013698,2]
[353753678,1740011439040,-500.0,0.00013698,2]
[353753680,1740011439050,-500.0,0.00013698,2]
[353753682,1740011439061,-500.0,0.00013698,2]
[353753684,1740011439070,-500.0,0.00013698,2]
[353753686,1740011439080,-500.0,0.00013698,2]
[353753688,1740011439089,-500.0,0.00013698,2]
[353753690,1740011439099,-470.31,0.00013698,2]
[353753692,1740011439109,-500.0,0.00013698,2]
[353753694,1740011439118,-500.0,0.00013698,2]
[353753696,1740011439128,-500.0,0.00013698,2]
[353753698,1740011439137,-500.0,0.00013698,2]
[353753700,1740011439147,-500.0,0.00013698,2]
[353753702,1740011439156,-500.0,0.00013698,2]
[353753704,1740011439167,-500.0,0.00013698,2]
[353753706,1740011439176,-500.0,0.00013698,2]
[353753708,1740011439186,-500.0,0.00013698,2]
[353753710,1740011439195,-500.0,0.00013698,2]
[353753712,1740011439204,-500.0,0.00013698,2]
[353753714,1740011439214,-500.0,0.00013698,2]
[353753716,1740011439223,-500.0,0.00013698,2]
[353753718,1740011439233,-500.0,0.00013698,2]
[353753720,1740011439242,-500.0,0.00013698,2]
[353753722,1740011439251,-7747.6,0.00013698,2]
[353753724,1740011439261,-500.0,0.00013698,2]
[353753726,1740011439270,-500.0,0.00013698,2]
[353753728,1740011439280,-500.0,0.00013698,2]
[353753730,1740011439289,-500.0,0.00013698,2]
[353753732,1740011439298,-500.0,0.00013698,2]
[353753734,1740011439308,-500.0,0.00013698,2]
[353753736,1740011439318,-500.0,0.00013698,2]
[353753738,1740011439327,-500.0,0.00013698,2]
[353753740,1740011439337,-2749.7,0.00013698,2]
[353753742,1740011439346,-500.0,0.00013698,2]
[353753744,1740011439356,-500.0,0.00013698,2]
[353753746,1740011439365,-500.0,0.00013698,2]
[353753748,1740011439374,-500.0,0.00013698,2]
[353753750,1740011439384,-500.0,0.00013698,2]
[353753752,1740011439394,-500.0,0.00013698,2]
[353753754,1740011439403,-500.0,0.00013698,2]
[353753756,1740011439412,-500.0,0.00013698,2]
[353753758,1740011439422,-500.0,0.00013698,2]
[353753760,1740011439432,-500.0,0.00013698,2]
[353753762,1740011439442,-500.0,0.00013698,2]
[353753764,1740011439451,-500.0,0.00013698,2]
[353753766,1740011439460,-500.0,0.00013698,2]
[353753768,1740011439472,-500.0,0.00013698,2]
[353753770,1740011439481,-500.0,0.00013698,2]
[353753773,1740011439491,-500.0,0.00013698,2]
[353753775,1740011439500,-500.0,0.00013698,2]
[353753777,1740011439510,-500.0,0.00013698,2]
[353753779,1740011439519,-500.0,0.00013698,2]
[353753781,1740011439528,-617.93313024,0.00013698,2]
[353753783,1740011439538,-705.29,0.00013698,2]
[353753785,1740011439547,-500.0,0.00013698,2]
[353753787,1740011439560,-1224.07,0.00013698,2]
[353753789,1740011439571,-500.0,0.00013698,2]
[353753791,1740011439580,-500.0,0.00013698,2]
[353753793,1740011439590,-500.0,0.00013698,2]
[353753795,1740011439599,-500.0,0.00013698,2]
[353753797,1740011439609,-500.0,0.00013698,2]
[353753799,1740011439619,-500.0,0.00013698,2]
[353753801,1740011439628,-500.0,0.00013698,2]
[353753803,1740011439638,-500.0,0.00013698,2]
[353753805,1740011439647,-500.0,0.00013698,2]
[353753807,1740011439657,-500.0,0.00013698,2]
[353753809,1740011439666,-500.0,0.00013698,2]
[353753811,1740011439675,-500.0,0.00013698,2]
[353753813,1740011439685,-500.0,0.00013698,2]
[353753815,1740011439695,-500.0,0.00013698,2]
[353753817,1740011439704,-500.0,0.00013698,2]
[353753819,1740011439713,-755.06,0.00013698,2]
[353753821,1740011439723,-500.0,0.00013698,2]
[353753823,1740011439733,-500.0,0.00013698,2]
[353753826,1740011439743,-500.0,0.00013698,2]
[353753828,1740011439753,-500.0,0.00013698,2]
[353753830,1740011439762,-500.0,0.00013698,2]
[353753832,1740011439772,-500.0,0.00013698,2]
[353753834,1740011439782,-500.0,0.00013698,2]
[353753836,1740011439792,-500.0,0.00013698,2]
[353753838,1740011439801,-500.0,0.00013698,2]
[353753840,1740011439811,-500.0,0.00013698,2]
[353753842,1740011439820,-500.0,0.00013698,2]
[353753844,1740011439830,-500.0,0.00013698,2]
[353753846,1740011439839,-500.0,0.00013698,2]
[353753847,1740011439848,-502.8691632,0.00013698,2]